bitfinex/quotes_ETHUSD_20250722
["timestamp","ask_amount","ask_price","bid_price","bid_amount"]
[1753152931261,1e-08,3745.8,3745.7,7.65824892]
[1753152931449,1e-08,3745.8,3745.7,3.43782795]
[1753152931756,1e-08,3745.8,3745.7,2.66972795]
[1753152931964,1e-08,3745.8,3745.7,2.69642522]
[1753152932328,1e-08,3745.8,3745.7,3.77362795]
[1753152932535,1e-08,3745.8,3745.7,3.80032522]
[1753152932785,1e-08,3745.8,3745.7,9.90864292]
[1753152936076,1e-08,3745.8,3745.7,7.72064292]
[1753152936236,1e-08,3745.8,3745.7,1.73261497]
[1753152936437,1e-08,3745.8,3745.7,5.63732795]
[1753152937262,1e-08,3745.8,3745.7,5.66402522]
[1753152937571,1e-08,3745.8,3745.7,6.11512522]
[1753152938733,1e-08,3745.8,3745.7,5.77012795]
[1753152939136,1e-08,3745.8,3745.7,5.76812795]
[1753152939690,1e-08,3745.8,3745.7,4.98252795]
[1753152940174,0.42750001,3745.8,3745.7,0.1328]
[1753152940779,0.42750001,3745.8,3745.4,2.18]
[1753152941083,0.4275,3745.7,3745.4,0.1328]
[1753152941241,0.4275,3745.7,3745.4,2.82943361]
[1753152941577,1e-08,3745.8,3745.4,2.82943361]
[1753152941578,0.4275,3745.6,3745.4,0.15949941]
[1753152942638,1e-08,3745.8,3745.4,0.1328]
[1753152942639,0.4275,3745.5,3745.4,0.1328]
[1753152942845,1.2013,3745.5,3745.4,0.1328]
[1753152943259,1.2013,3745.5,3745.2,2.3098]
[1753152943443,0.4275,3745.4,3745.2,2.3098]
[1753152943636,0.4275,3745.4,3745.2,0.1328]
[1753152943885,0.4275,3745.3,3745.2,0.1328]
[1753152944278,3.4846892,3745.3,3745.1,0.001]
[1753152944443,0.02669032,3745.2,3745.1,0.001]
[1753152944781,3.12427469,3745.2,3745.1,0.001]
[1753152944950,0.45419032,3745.2,3745.1,0.001]
[1753152945149,0.4275,3745.2,3745.1,0.001]
[1753152945553,0.1328,3745.4,3745.1,0.001]
[1753152945786,1.1872,3745.9,3745.1,0.02770155]
[1753152945981,1.32,3745.9,3745.2,2.67008437]
[1753152946141,1.32,3745.9,3745.1,0.16050155]
[1753152946142,1.32,3745.9,3745.3,0.02670013]
[1753152946143,1.34669032,3745.9,3745.3,0.02670013]
[1753152946343,1.32,3745.9,3745.2,2.67007454]
[1753152946661,1.34669032,3745.9,3745.1,2.8038849]
[1753152946848,1.32,3745.9,3745.1,2.8038849]
[1753152947046,1.34669032,3745.9,3745.1,2.8038849]
[1753152947275,1.32,3745.9,3745.2,2.69678521]
[1753152947581,1.32,3745.9,3745.1,0.1338]
[1753152947582,3.85679875,3745.9,3745.6,0.1328]
[1753152947786,2.66972795,3745.7,3745.6,0.1328]
[1753152947979,3.56821438,3745.6,3745.1,0.001]
[1753152948181,0.1328,3745.3,3745.1,0.001]
[1753152948347,0.7894,3745.2,3745.1,0.001]
[1753152951258,4.0636734,3745.2,3745.1,0.001]
[1753152952061,2.67065484,3744.4,3744.1,0.1328]
[1753152952258,2.67065484,3744.4,3742.0,2.67231572]
[1753152952259,0.7893,3744.2,3741.4,1.1239]
[1753152952579,3.46066827,3743.4,3742.2,2.6721817]
[1753152952880,3.48735859,3743.4,3742.1,2.67228439]
[1753152953050,6.14735859,3743.4,3742.0,0.004]
[1753152953473,6.14635859,3743.4,3742.0,0.004]
[1753152953678,2.6722963,3742.1,3742.0,0.004]
[1753152953851,0.7893,3742.5,3742.0,0.004]
[1753152954183,3.1352963,3742.1,3742.0,0.004]
[1753152954385,3.9245963,3742.1,3742.0,0.004]
[1753152954549,4.25028565,3742.1,3742.0,0.004]
[1753152955198,7.25028565,3742.1,3742.0,0.004]
[1753152955398,9.41859533,3742.1,3742.0,0.004]
[1753152955785,9.41859533,3742.1,3741.0,0.004]
[1753152955786,0.8279,3741.8,3741.0,0.004]
[1753152956010,2.22269032,3741.7,3741.0,0.004]
[1753152956174,0.48969032,3741.7,3741.0,0.004]
[1753152956379,0.02669032,3741.6,3741.0,0.004]
[1753152956696,0.02669032,3741.6,3741.1,2.67301061]
[1753152957007,0.02669032,3741.6,3741.0,0.004]
[1753152957008,0.463,3741.5,3741.0,0.004]
[1753152957208,0.02669032,3741.4,3741.0,0.004]
[1753152957585,0.463,3741.3,3741.0,0.004]
[1753152957886,0.48969032,3741.2,3741.0,0.004]
[1753152958430,0.463,3741.1,3741.0,0.004]
[1753152960210,1.2909,3741.1,3741.0,0.004]
[1753152960375,1.2909,3741.5,3741.0,0.004]
[1753152960579,2.192,3742.0,3741.0,0.004]
[1753152960786,0.02669032,3741.9,3741.8,2.6724844]
[1753152960985,0.8279,3742.0,3741.9,2.67243913]
[1753152961715,0.8279,3742.0,3741.0,0.7684]
[1753152961716,1.2909,3742.0,3741.0,0.004]
[1753152961920,0.8279,3741.1,3741.0,0.004]
[1753152962120,6.50091061,3741.1,3741.0,0.004]
[1753152962326,0.8279,3740.6,3739.7,0.1336]
[1753152962487,0.1336,3739.9,3739.5,2.67408314]
[1753152962684,0.1336,3739.9,3739.3,0.1336]
[1753152962685,0.1336,3739.9,3739.4,2.67418134]
[1753152962908,0.463,3739.8,3739.3,0.1336]
[1753152963108,0.463,3739.8,3739.6,2.67807835]
[1753152963426,0.1336,3739.9,3739.8,2.67393978]
[1753152963586,0.1336,3740.4,3740.0,2.67379679]
[1753152963782,0.1336,3740.4,3740.3,2.67358233]
[1753152963981,0.463,3740.3,3739.8,0.1336]
[1753152964206,0.5966,3740.2,3739.7,2.67399211]
[1753152964520,2.67315351,3740.9,3739.6,0.004]
[1753152964521,0.1336,3739.7,3739.6,0.004]
[1753152964721,3.55831128,3739.7,3739.6,0.004]
[1753152965018,4.0480016,3739.7,3739.6,0.004]
[1753152965508,1.37399032,3739.7,3739.6,0.004]
[1753152965688,4.0480016,3739.7,3739.6,0.004]
[1753152966218,1.37399032,3739.7,3739.6,0.004]
[1753152969321,1.32199032,3739.7,3739.6,0.005]
[1753152970089,3.9960016,3739.7,3739.6,0.005]
[1753152970423,2.67429732,3739.3,3739.2,0.00986642]
[1753152970623,2.67429732,3739.3,3738.1,0.001]
[1753152970624,0.02669032,3739.3,3738.1,0.001]
[1753152970927,0.8323,3738.2,3738.1,0.001]
[1753152971219,1.32199032,3738.2,3738.1,0.001]
[1753152971792,0.85899032,3738.2,3738.1,0.001]
[1753152972089,0.463,3738.2,3738.1,0.001]
[1753152972284,3.0303,3738.7,3738.1,0.001]
[1753152972285,0.02669032,3738.5,3738.1,0.001]
[1753152972524,0.02669032,3738.5,3738.4,2.67494115]
[1753152972823,0.02669032,3738.6,3738.5,2.6748696]
[1753152973022,1.2953,3739.6,3738.6,2.67479203]
[1753152973224,0.02669032,3739.5,3738.2,0.02675084]
[1753152973390,0.02669032,3739.5,3739.2,2.67433528]
[1753152973593,0.02669032,3739.5,3739.4,2.67422581]
[1753152973900,0.8323,3740.0,3739.4,0.26742258]
[1753152974103,0.02669032,3739.9,3739.0,3.43689739]
[1753152974302,0.02669032,3740.3,3739.0,0.7624]
[1753152974498,0.02669032,3740.3,3739.7,2.67400205]
[1753152974698,0.02669032,3740.3,3739.8,2.67387001]
[1753152974925,0.02669032,3740.3,3739.1,0.0267444]
[1753152975225,0.02269032,3740.3,3739.2,3.02072545]
[1753152975390,0.463,3740.3,3739.2,3.02072545]
[1753152975587,0.02269032,3740.2,3739.2,0.34636215]
[1753152975907,0.02269032,3740.3,3740.1,2.67366043]
[1753152976111,0.02269032,3740.4,3740.1,2.67366043]
[1753152976418,0.02269032,3740.4,3739.9,2.67381178]
[1753152976620,0.463,3740.3,3739.8,2.6739296]
[1753152976829,0.48569032,3740.2,3739.2,0.34636215]
[1753152976999,0.48569032,3740.2,3739.0,0.7624]
[1753152977203,0.1336,3739.7,3739.5,2.67414829]
[1753152977409,0.1336,3739.7,3739.1,0.1336]
[1753152977706,0.1336,3739.7,3739.2,2.67436884]
[1753152977910,0.1336,3739.7,3739.4,2.67415611]
[1753152978097,0.1336,3739.7,3739.6,2.67408278]
[1753152978431,0.02269032,3740.4,3739.9,2.67386226]
[1753152978623,0.1336,3740.0,3739.7,2.67398095]
[1753152978794,0.02269032,3740.2,3739.2,0.35703688]
[1753152978995,0.1336,3739.7,3739.0,2.80810923]
[1753152979231,0.1336,3739.4,3739.3,2.67423382]
[1753152979532,0.1336,3739.7,3739.0,0.1336]
[1753152979692,0.1336,3739.7,3739.2,2.67434797]
[1753152979893,0.1336,3739.7,3738.8,0.001]
[1753152979894,2.67458343,3738.9,3738.8,0.001]
[1753152980098,2.69727375,3738.9,3738.8,0.001]
[1753152980300,3.14267375,3738.9,3738.8,0.001]
[1753152981451,3.91507375,3738.9,3738.8,0.001]
[1753152982309,0.79509032,3738.9,3738.8,0.001]
[1753152982509,2.194,3739.1,3738.8,0.001]
[1753152982701,0.7571,3739.4,3738.8,0.001]
[1753152982900,0.1336,3739.0,3738.8,0.001]
[1753152983512,0.02269032,3739.6,3738.8,0.001]
[1753152983726,2.8304426,3739.6,3738.9,0.1336]
[1753152983995,0.1336,3739.4,3738.8,2.67564572]
[1753152984202,0.72269032,3739.3,3738.8,0.001]
[1753152984644,0.72269032,3739.3,3738.9,2.67458343]
[1753152984645,0.1336,3739.0,3738.9,2.67458343]
[1753152984810,0.72269032,3739.3,3739.2,2.67436884]
[1753152984811,0.7,3739.3,3739.2,2.67436884]
[1753152985201,0.7,3739.3,3739.2,2.70111252]
[1753152985426,0.7,3739.3,3739.2,2.80796884]
[1753152985740,0.7,3739.3,3739.2,0.54824663]
[1753152985969,0.7,3739.3,3739.2,2.67436884]
[1753152986321,0.7,3739.3,3739.1,2.67443048]
[1753152986657,0.7,3739.3,3739.0,2.67450767]
[1753152986943,0.7,3739.3,3739.2,2.80796884]
[1753152987255,0.7,3739.3,3739.2,3.97876884]
[1753152987414,0.7,3739.3,3739.2,4.64677135]
[1753152987763,0.7,3739.3,3739.2,4.30867135]
[1753152988060,0.7,3739.3,3738.8,0.001]
[1753152988061,2.67458343,3738.9,3738.8,0.001]
[1753152988206,0.02269032,3739.2,3738.8,0.001]
[1753152988571,0.4454,3738.9,3738.8,0.001]
[1753152988714,0.46809032,3738.9,3738.8,0.001]
[1753152989306,3.45693325,3738.9,3738.8,0.001]
[1753152990453,7.24113325,3738.9,3738.8,0.001]
[1753152990749,7.21844293,3738.9,3738.8,0.001]
[1753152992438,9.40744293,3738.9,3738.8,0.001]
[1753152993133,9.40644293,3738.9,3738.8,0.001]
[1753152994160,9.96738699,3738.9,3738.8,0.001]
[1753152995153,3.48835582,3738.1,3738.0,0.001]
[1753152995666,3.95644614,3738.1,3738.0,0.001]
[1753152996089,6.14744614,3738.1,3738.0,0.001]
[1753152996272,20.64744614,3738.1,3738.0,0.001]
[1753152996436,20.62475582,3738.1,3738.0,0.001]
[1753152996639,20.93901532,3738.1,3738.0,0.001]
[1753152997259,20.93801532,3738.1,3738.0,0.001]
[1753152997573,18.74801532,3738.1,3738.0,0.001]
[1753152997742,20.93801532,3738.1,3738.0,0.001]
[1753152997945,20.93701532,3738.1,3738.0,0.001]
[1753152998160,15.7586,3738.1,3738.0,0.001]
[1753152998362,20.62275582,3738.1,3738.0,0.001]
[1753152999738,18.43375582,3738.1,3738.0,0.001]
[1753152999943,20.62275582,3738.1,3738.0,0.001]
[1753153000774,18.43375582,3738.1,3738.0,0.001]
[1753153001073,16.688,3738.1,3738.0,0.001]
[1753153001664,14.5,3738.1,3738.0,0.001]
[1753153001860,16.688,3738.1,3738.0,0.001]
[1753153002068,0.1336,3738.2,3738.1,2.67511061]
[1753153002273,0.1336,3738.2,3738.0,0.001]
[1753153002457,0.1336,3738.2,3738.0,0.34947403]
[1753153002957,2.69784614,3738.1,3738.0,0.001]
[1753153003159,6.10264614,3738.1,3738.0,0.001]
[1753153003357,0.79509032,3738.1,3738.0,0.001]
[1753153003560,19.38584614,3738.1,3738.0,0.001]
[1753153003871,19.80855582,3738.1,3738.0,0.001]
[1753153005279,20.59575582,3738.1,3738.0,0.001]
[1753153005678,18.40775582,3738.1,3738.0,0.001]
[1753153005881,20.59375582,3738.1,3738.0,0.001]
[1753153008670,20.59175582,3738.1,3738.0,0.001]
[1753153008886,14.5,3738.1,3738.0,0.001]
[1753153009050,16.685,3738.1,3738.0,0.001]
[1753153009552,2.184,3738.1,3738.0,0.001]
[1753153009991,4.85915582,3738.1,3738.0,0.001]
[1753153010187,19.80275582,3738.1,3738.0,0.001]
[1753153010550,17.17515582,3738.1,3738.0,0.001]
[1753153010769,19.35815582,3738.1,3738.0,0.001]
[1753153010962,14.5,3738.1,3738.0,0.001]
[1753153011159,16.683,3738.1,3738.0,0.001]
[1753153011684,14.5,3738.1,3738.0,0.001]
[1753153011886,19.35715582,3738.1,3738.0,0.001]
[1753153012184,16.681,3738.1,3738.0,0.001]
[1753153012393,19.35615582,3738.1,3738.0,0.001]
[1753153012588,14.5,3738.1,3738.0,0.001]
[1753153012809,17.17515582,3738.1,3738.0,0.001]
[1753153013099,2.67515582,3738.1,3738.0,0.001]
[1753153013388,19.37784614,3738.1,3738.0,0.001]
[1753153013610,17.61875582,3738.1,3738.0,0.001]
[1753153013794,19.79875582,3738.1,3738.0,0.001]
[1753153014171,19.35515582,3738.1,3738.0,0.001]
[1753153014591,19.79875582,3738.1,3738.0,0.001]
[1753153014795,19.79775582,3738.1,3738.0,0.001]
[1753153015727,2.67607245,3736.9,3736.2,0.8297]
[1753153015936,2.177,3737.1,3736.2,0.8297]
[1753153016076,0.02269032,3737.0,3736.2,0.8297]
[1753153016581,2.67607211,3736.9,3736.2,0.8297]
[1753153016780,2.67602742,3736.9,3736.2,0.8297]
[1753153017010,2.177,3737.1,3736.2,0.8297]
[1753153017170,2.19869032,3737.0,3736.2,0.8297]
[1753153017513,2.176,3736.9,3736.3,2.67644461]
[1753153017732,2.176,3736.9,3736.2,0.85646516]
[1753153018006,16.676,3737.0,3736.3,2.6764225]
[1753153018367,19.3519477,3737.0,3736.2,0.85646516]
[1753153018569,19.35196007,3737.0,3736.2,0.85646516]
[1753153018803,2.67601487,3736.9,3736.2,0.8297]
[1753153019000,0.15629032,3736.8,3736.2,0.9633]
[1753153019571,0.15629032,3736.8,3736.2,3.6397911]
[1753153019768,0.1336,3736.8,3736.3,2.6764445]
[1753153020311,14.5,3737.0,3736.8,2.6760425]
[1753153020516,2.3066,3737.3,3736.9,0.3381]
[1753153020697,0.02269032,3737.2,3736.2,0.8297]
[1753153020896,0.1336,3736.9,3736.4,2.67637048]
[1753153021214,2.173,3737.3,3736.6,2.67622972]
[1753153021408,0.1336,3737.2,3736.8,0.8127]
[1753153021720,14.5,3737.1,3736.5,0.1336]
[1753153021870,0.02269032,3737.0,3736.5,0.1336]
[1753153022068,0.02269032,3737.0,3736.5,0.4717]
[1753153022312,2.67610407,3736.8,3736.4,0.8127]
[1753153022606,2.69887173,3736.7,3736.4,0.8127]
[1753153022804,0.02269032,3736.7,3736.4,0.8127]
[1753153023008,0.02269032,3736.8,3736.4,0.8127]
[1753153023570,2.67551018,3737.7,3736.8,2.67605328]
[1753153023918,0.7767,3738.4,3737.1,0.8056]
[1753153024100,0.1336,3737.7,3737.2,0.364858]
[1753153024273,2.67513401,3738.2,3737.2,0.364858]
[1753153024274,0.1336,3738.1,3737.4,2.80925638]
[1753153024607,0.02269032,3738.1,3737.1,0.8056]
[1753153024809,0.1336,3737.9,3737.3,0.1336]
[1753153024995,2.67554231,3737.6,3737.1,0.8056]
[1753153025306,2.67564236,3737.5,3737.1,0.8056]
[1753153025473,0.02269032,3737.5,3737.1,0.8056]
[1753153025678,2.17,3737.6,3737.2,0.3381]
[1753153025889,2.17,3737.6,3737.1,0.8056]
[1753153026285,4.84551601,3737.6,3737.1,0.8056]
[1753153026484,0.02269032,3737.5,3737.1,0.8056]
[1753153026683,2.6,3737.3,3737.1,0.8056]
[1753153026884,2.67587396,3737.1,3736.5,0.7945]
[1753153027612,0.02269032,3737.2,3736.5,0.7945]
[1753153027815,2.6758799,3737.1,3736.5,0.7945]
[1753153028009,2.67596206,3737.0,3736.5,1.17540323]
[1753153028211,0.02269032,3737.0,3736.5,0.7945]
[1753153028410,2.67596249,3737.0,3736.5,0.7945]
[1753153028713,2.6987162,3736.9,3736.5,0.7945]
[1753153028896,14.5,3736.8,3736.5,0.7945]
[1753153029280,4.768,3737.3,3736.6,0.3381]
[1753153029500,2.67580917,3737.2,3736.6,0.71899395]
[1753153029788,17.17581493,3737.2,3736.6,0.71899395]
[1753153030003,2.67595326,3737.0,3736.6,0.38089395]
[1753153030322,0.02269032,3737.1,3736.5,0.7945]
[1753153030615,2.67598016,3737.0,3736.5,0.7945]
[1753153030813,2.69857041,3737.1,3736.5,0.7945]
[1753153030988,0.02269032,3737.1,3736.6,0.3381]
[1753153031194,5.27573538,3737.3,3736.7,0.3381]
[1753153031395,5.2984257,3737.3,3736.7,0.3381]
[1753153031790,2.67580655,3737.2,3736.7,0.3381]
[1753153031991,2.67593407,3737.1,3736.7,0.3381]
[1753153032191,2.6,3737.3,3736.8,0.3381]
[1753153032398,5.29847695,3737.3,3736.8,0.3381]
[1753153032596,2.67580168,3737.2,3736.5,0.7945]
[1753153032795,2.67580168,3737.2,3736.6,0.38089607]
[1753153033385,2.67587235,3737.1,3736.6,0.38089607]
[1753153033659,2.67595212,3737.0,3736.5,0.7945]
[1753153033824,0.02269032,3736.9,3736.5,0.7945]
[1753153034037,2.67616018,3736.7,3736.5,0.7945]
[1753153034186,2.164,3737.0,3736.5,3.47079966]
[1753153034389,4.83967645,3737.4,3736.6,0.36486229]
[1753153034584,0.02269032,3737.3,3736.6,0.3381]
[1753153034790,0.02269032,3737.3,3736.7,2.6761581]
[1753153035106,0.02269032,3737.3,3736.7,3.32476213]
[1753153035305,0.02269032,3737.3,3736.8,0.1336]
[1753153035511,3.21,3739.3,3737.1,0.1336]
[1753153035512,0.1336,3737.7,3737.1,0.1336]
[1753153035708,4.84023746,3738.0,3737.4,0.1336]
[1753153035911,2.165,3738.0,3737.4,0.1336]
[1753153036099,2.69801817,3737.9,3737.4,0.1336]
[1753153036497,2.69801817,3737.9,3737.0,0.7746]
[1753153036498,0.57356579,3737.9,3737.0,0.7746]
[1753153036698,2.67609125,3736.8,3736.6,0.7608]
[1753153036917,0.824,3737.8,3736.6,0.7608]
[1753153036918,2.6,3737.4,3736.6,0.7608]
[1753153037127,0.02269032,3737.3,3736.6,3.43700918]
[1753153037329,2.67573655,3737.3,3736.6,0.7608]
[1753153037537,2.69842687,3737.3,3736.6,1.10460873]
[1753153037736,17.1,3737.4,3736.6,1.10460873]
[1753153037935,2.6,3737.4,3736.7,0.02676158]
[1753153038103,2.6,3737.4,3736.8,0.775]
[1753153038431,2.6,3737.4,3737.3,2.67572846]
[1753153038596,2.6,3737.4,3737.3,3.98588847]
[1753153038996,2.6,3737.4,3737.3,4.01264575]
[1753153039231,2.6,3737.4,3737.3,3.98588847]
[1753153039530,0.002,3738.0,3737.3,1.31016001]
[1753153039710,0.002,3738.0,3737.6,2.67545643]
[1753153039905,0.002,3738.0,3737.7,2.67543252]
[1753153040120,0.002,3738.0,3737.4,2.67565687]
[1753153040322,0.002,3738.0,3737.4,2.67560158]
[1753153040631,2.6772283,3738.0,3737.3,0.775]
[1753153041031,2.6772283,3738.0,3737.3,3.45072422]
[1753153041192,2.6,3737.7,3737.3,4.27949056]
[1753153041706,2.6,3737.7,3737.3,1.60376634]
[1753153041907,2.6,3737.7,3737.3,0.775]
[1753153042627,2.6,3737.7,3737.4,2.70239952]
[1753153042929,2.6,3737.7,3737.6,2.67551369]
[1753153043136,2.6,3737.7,3737.4,2.67565687]
[1753153043429,2.6,3737.7,3737.5,2.67557728]
[1753153043648,2.6,3737.7,3737.5,3.28821468]
[1753153043829,2.6,3737.7,3737.5,0.6126374]
[1753153044414,2.6,3737.7,3737.5,3.28821232]
[1753153044931,2.6,3737.7,3737.5,0.6126374]
[1753153045136,2.6,3737.7,3737.5,3.28822255]
[1753153045354,2.6,3737.7,3737.6,3.08183594]
[1753153045718,2.6,3737.7,3737.6,0.40632225]
[1753153045922,2.6,3737.7,3737.5,0.6126374]
[1753153046615,2.6,3737.7,3737.6,0.1336]
[1753153051540,2.6,3737.7,3737.6,2.83586882]
[1753153052238,0.002,3738.0,3737.9,2.67529896]
[1753153052499,0.002,3738.8,3738.7,3.4646265]
[1753153052772,0.002,3738.8,3738.7,5.63937376]
[1753153053072,0.002,3738.8,3738.7,5.84179835]
[1753153053448,0.002,3739.5,3739.4,3.46412581]
[1753153053850,0.002,3739.5,3739.4,5.61112581]
[1753153054052,0.002,3739.5,3739.4,6.46641317]
[1753153054576,0.002,3739.5,3739.4,1.61844511]
[1753153054770,0.002,3739.5,3739.1,2.67443473]
[1753153054948,0.002,3739.5,3739.2,2.67430795]
[1753153055150,0.002,3739.5,3739.4,3.46412581]
[1753153055556,0.002,3739.5,3739.4,5.61012581]
[1753153056064,0.002,3739.5,3739.4,5.60912581]
[1753153056266,0.002,3739.5,3739.4,6.43746919]
[1753153056587,0.002,3739.5,3739.4,0.7899]
[1753153056879,0.002,3739.5,3739.3,2.145]
[1753153057094,0.002,3739.5,3739.2,2.145]
[1753153057293,0.002,3739.5,3739.4,2.70096806]
[1753153057652,0.002,3739.5,3739.4,2.67422581]
[1753153058062,0.002,3739.5,3739.4,3.20909135]
[1753153058372,0.002,3739.5,3739.4,3.2358336]
[1753153058582,0.002,3739.5,3739.0,0.7845]
[1753153058748,0.002,3739.5,3738.1,4.69]
[1753153058749,1.2551,3739.4,3738.1,0.7809]
[1753153058944,0.45389032,3739.3,3738.1,0.7809]
[1753153059262,2.67475535,3738.7,3738.1,0.7809]
[1753153059451,2.67475535,3738.7,3738.1,1.07359]
[1753153059652,2.67479805,3738.6,3738.1,1.07359]
[1753153059969,2.67479335,3738.7,3738.1,1.07359]
[1753153060554,0.45389032,3738.8,3737.8,0.7809]
[1753153060760,0.4312,3738.8,3738.0,2.145]
[1753153061076,2.67478469,3738.7,3738.1,0.02675155]
[1753153061298,2.67480843,3738.6,3738.1,0.02675155]
[1753153061577,2.67506924,3738.3,3737.8,0.7809]
[1753153061786,3.10626372,3738.3,3737.9,2.144]
[1753153061949,3.10626372,3738.3,3737.9,0.29249]
[1753153062144,3.10626372,3738.3,3738.1,0.1336]
[1753153062346,2.67508426,3738.2,3738.1,0.1336]
[1753153062680,0.4312,3738.2,3737.9,0.1336]
[1753153063564,2.67522739,3738.0,3737.9,0.1336]
[1753153063754,0.1336,3738.5,3738.0,0.7813]
[1753153063959,2.80848416,3738.5,3738.0,0.7813]
[1753153064160,0.4312,3738.8,3738.1,0.02675155]
[1753153064368,0.1336,3738.7,3738.1,0.16035155]
[1753153064668,2.67487639,3738.5,3738.1,0.16035155]
[1753153064975,0.1336,3738.7,3738.1,0.1336]
[1753153064976,1.26439032,3738.4,3738.1,0.1336]
[1753153065175,0.4312,3738.3,3737.6,2.9253]
[1753153065380,0.4312,3738.3,3737.9,0.1336]
[1753153065681,0.4312,3738.2,3737.9,0.1336]
[1753153066550,0.4312,3738.1,3737.9,0.1336]
[1753153066895,0.1336,3738.5,3738.0,0.7813]
[1753153067081,0.4309,3738.4,3738.1,0.1336]
[1753153067246,3.10584783,3738.4,3738.1,0.1336]
[1753153067446,0.4309,3738.4,3738.1,0.1336]
[1753153068693,0.02269032,3738.7,3738.1,0.1336]
[1753153068857,2.67508426,3738.2,3738.1,0.1336]
[1753153069056,3.10598426,3738.2,3738.1,0.1336]
[1753153069498,3.10598426,3738.2,3737.6,2.144]
[1753153069690,3.10598426,3738.2,3737.9,0.1336]
[1753153069997,0.4309,3738.2,3737.9,0.1336]
[1753153070498,0.4309,3738.1,3737.9,0.1336]
[1753153070992,0.4309,3738.0,3737.9,0.1336]
[1753153071661,3.10612739,3738.0,3737.9,0.1336]
[1753153071991,2.67566227,3737.4,3736.6,5.16497802]
[1753153072178,2.67574356,3737.3,3736.7,0.7915]
[1753153072584,2.67566805,3737.4,3736.7,0.7915]
[1753153072901,2.6761581,3736.7,3736.6,0.34480873]
[1753153073191,2.69865856,3737.0,3736.6,0.001]
[1753153073393,0.4309,3736.7,3736.6,0.001]
[1753153073555,3.1070581,3736.7,3736.6,0.001]
[1753153073755,6.0745581,3736.7,3736.6,0.001]
[1753153073997,2.67630135,3736.5,3735.8,0.001]
[1753153074157,2.69899167,3736.5,3735.8,0.001]
[1753153074360,0.45359032,3736.5,3735.8,0.001]
[1753153074565,2.6750034,3738.4,3735.8,0.001]
[1753153074566,0.4309,3737.0,3736.0,0.8143]
[1753153074759,2.675658,3737.4,3736.0,0.8143]
[1753153074760,1.2544,3737.4,3736.4,2.67736272]
[1753153074992,0.8235,3737.4,3736.5,0.29449928]
[1753153075194,0.8235,3737.4,3736.5,0.26773627]
[1753153075383,0.4309,3737.7,3736.8,0.8143]
[1753153075584,2.67396994,3739.8,3736.9,0.02676014]
[1753153075585,0.4309,3738.1,3736.9,0.02676014]
[1753153075763,0.02269032,3738.0,3736.8,0.8143]
[1753153075971,0.02269032,3738.0,3736.8,1.17081363]
[1753153075972,3.10619896,3737.9,3736.8,1.17081363]
[1753153076200,0.8235,3737.7,3736.8,0.35651363]
[1753153076502,3.12916303,3737.6,3736.8,0.35651363]
[1753153076678,2.6757311,3737.3,3736.8,0.35651363]
[1753153076996,0.45359032,3737.2,3736.4,0.001]
[1753153077291,2.69856198,3737.1,3736.4,0.001]
[1753153077497,0.8308,3737.0,3736.4,0.001]
[1753153077701,2.69873687,3736.9,3736.4,0.001]
[1753153077897,0.02269032,3736.9,3736.6,0.001]
[1753153078062,3.10704794,3736.8,3736.6,0.001]
[1753153078261,2.69884842,3736.7,3736.6,0.001]
[1753153078462,3.12974842,3736.7,3736.6,0.001]
[1753153078688,0.4309,3736.7,3736.6,0.001]
[1753153078888,3.9378581,3736.7,3736.6,0.001]
[1753153079097,2.67630135,3736.5,3736.4,0.001]
[1753153079285,3.52979167,3736.5,3736.4,0.001]
[1753153079610,3.96069167,3736.5,3736.4,0.001]
[1753153079925,1.28439032,3736.5,3735.1,0.01028942]
[1753153080204,0.8308,3735.9,3735.1,0.01028942]
[1753153080421,0.02269032,3735.8,3735.1,0.01028942]
[1753153080713,0.8308,3736.3,3735.1,0.01028942]
[1753153080880,0.02269032,3736.2,3735.4,2.67706716]
[1753153081216,0.8308,3736.0,3735.1,0.01028942]
[1753153081412,0.8308,3735.6,3735.1,0.01028942]
[1753153081567,2.67723281,3735.2,3735.1,0.01028942]
[1753153081763,2.67723281,3735.2,3733.7,0.7708]
[1753153081764,3.77802512,3735.2,3733.7,0.7708]
[1753153081995,0.8308,3734.7,3733.3,0.66606452]
[1753153082215,2.67787804,3734.3,3733.3,0.66606452]
[1753153082412,0.8308,3733.9,3733.3,0.66606452]
[1753153082609,0.45359032,3733.8,3733.3,0.66606452]
[1753153082968,2.67844637,3733.6,3733.3,0.66606452]
[1753153083290,3.50932359,3733.4,3733.3,0.66606452]
[1753153083484,1.2617,3733.4,3733.3,0.66606452]
[1753153084017,0.8308,3733.3,3731.9,2.67958814]
[1753153084303,0.02269032,3733.2,3733.1,2.67873884]
[1753153084478,0.8308,3733.7,3733.1,0.26787388]
[1753153084688,0.8308,3734.3,3734.2,2.67794976]
[1753153084873,0.8308,3734.7,3734.6,2.67766293]
[1753153085198,0.8308,3734.7,3733.6,0.7708]
[1753153085505,0.8303,3735.3,3735.2,2.67723281]
[1753153085691,0.8303,3735.3,3734.0,0.4545]
[1753153085869,0.4309,3735.3,3733.6,0.7708]
[1753153086071,0.4309,3735.3,3733.7,0.37708]
[1753153086470,2.9224,3735.2,3733.3,2.6785631]
[1753153086676,2.67802809,3734.1,3732.5,0.762]
[1753153086880,3.13169131,3734.0,3733.0,2.6787908]
[1753153087110,0.4309,3733.9,3732.5,0.762]
[1753153087416,3.47652101,3733.7,3732.4,2.7617674]
[1753153087594,0.45359032,3733.6,3732.4,0.08259535]
[1753153087797,2.67862714,3733.3,3732.4,0.08259535]
[1753153087978,0.45359032,3733.2,3732.4,2.76181891]
[1753153088173,0.45359032,3733.2,3732.4,0.08259535]
[1753153088388,0.02269032,3733.6,3733.2,2.67866476]